[Event "EU-ch 12th"]
[Site "Aix les Bains"]
[Date "2011.04.01"]
[Round "10"]
[White "Feller, Sebastien"]
[Black "Volokitin, Andrei"]
[Result "1-0"]
[ECO "E32"]
[WhiteElo "2657"]
[BlackElo "2677"]
[Annotator "Marchand,A/Primel,D"]
[PlyCount "143"]
[EventDate "2011.03.22"]
[EventType "swiss"]
[EventRounds "11"]
[EventCountry "FRA"]
[SourceTitle "CBM 142 Extra"]
[Source "ChessBase"]
[SourceDate "2011.06.27"]
[SourceVersion "1"]
[SourceVersionDate "2011.06.27"]
[SourceQuality "1"]
[TimeControl "40/5400+30:1800+30"]

1. d4 Nf6 2. c4 e6 3. Nc3 Bb4 4. Qc2 O-O (4... c5) (4... d5) 5. a3 Bxc3+ 6.
Qxc3 b6 7. Bg5 (7. Nf3 Bb7 8. e3 d6 9. b3 Nbd7 10. Bb2 Qe7 11. Be2 Ne4 (11...
c5) 12. Qc2 f5 13. O-O Rae8 14. Ne1 Qh4 15. d5 (15. b4 $5 $146 Rf6 (15... Ndf6
16. f3 Ng5 17. Nd3 $14 {[%csl Ge5,Gf4]}) 16. Nf3 Qh5 17. c5 $1 $36 {[%cal
Gc5c6]}) 15... Ndf6 16. Rd1 Qh6) 7... Bb7 8. f3 h6 9. Bh4 d5 10. e3 Nbd7 11.
cxd5 (11. Nh3 c5 (11... Rc8) 12. cxd5 exd5 13. Bb5 Ne4 14. Bxd8 Nxc3 15. bxc3 (
15. Bxd7 Rfxd8 16. Bf5 Nb5 17. Rd1 Nd6 $11 {Ulibin}) 15... Rfxd8 16. Kd2 Nf6
17. Bd3 Ne8 18. Nf4 {Shabalov,A (2425)-Ulibin,M (2445) URS-ch U26 Tbilisi 1989
1/2} (18. a4 $5 {[%cal Ga4a5]})) 11... Nxd5 12. Bxd8 Nxc3 13. Bh4 (13. Be7 Rfe8
14. Bb4 Nd5 15. e4 Ne3 16. Kf2 Nxf1 17. Rxf1 f5 $132 {Panno,O (2495)-Dokhoian,
Y (2575) GMA op Moscow 1989 (4) 1/2}) 13... Nd5 14. Bf2 f5 $5 (14... c5 {
L'alternative} 15. e4 Ne7 (15... Nf4 $13) 16. Bb5 Nc6 (16... Bc6) 17. Ne2 a6 (
17... Rfc8) 18. Ba4 (18. Bxc6 Bxc6) 18... b5 19. Bc2 cxd4 20. Nxd4 Rac8 21.
O-O-O $1 {Le problème majeur des Blancs dans cette variante Qc2 est le léger
retard de développement et dans cette position la paire de B commence а jouer.
J'ai néanmoins raté ensuite la nulle en zeitnot} Nde5 22. Nb3 a5 23. Nc5 $14 {
Lazarev,V (2441)-Primel,D 1er open Rohde 2001 (3) 1-0}) 15. Bb5 $5 {Une idée
interessante pour gêner le Bb7} c6 {[%csl Rb7]} 16. Bd3 (16. Ba4) (16. Bc4)
16... e5 $1 {[%cal Ga8e8,Ge8e1,Ge5d4] Les Noirs doivent joeur de manière
dynamique avant que les Blancs n'aient le temps de terminer le développement.}
17. Ne2 Rae8 {[%cal Ge8e1]} (17... e4 $5 $146 {Aucune partie ne semble avoir
suivi ce coup selon les bases mais il mériterait un essai pratique même s'il
donne la case "f4"} 18. Bc4 {[%cal Gc4g8]} (18. fxe4 $6 fxe4 19. Bxe4 Nxe3 $1
20. Bxe3 Rae8 {[%csl Re1,Re3] Illustrant le problème de développement des
Blancs}) 18... Kh7 (18... Rae8 19. Nf4) 19. Bxd5 (19. Nf4) 19... cxd5 20. Nf4
Rac8 $32) 18. O-O (18. O-O-O $5 $146 {Si les Noirs veulent attaquer sur la
colonne "c", ils vont devoir perdre deux tempi avec c6c5 et Re8c8.}) 18... exd4
$11 {[%csl Re3]} 19. exd4 {[%csl Rd4]} Nb8 {[%cal Gb7a6] Un coup multifonction:
- Avec un P isolé, l'échange ne peut pas être mauvais pour les Noirs. - Le Nd7
manque de cases centrales} (19... N7f6 $143 {Quelques parties jouées par
correspondance ont suivi cette ligne mais les Blancs sont un peu mieux.} 20.
Rfe1 f4 21. Nc3 $14 {[%csl Ge4];Jaworski,M (2458)-Lepikhov,A (2611) Krzyszton
mem corr 1999 1/2}) 20. Nc3 (20. Rac1 Ba6 21. Bxa6 Nxa6) 20... Ba6 (20... Nf4
$6 21. Bc4+) 21. Bxa6 Nxa6 22. Nxd5 cxd5 23. Rac1 $1 {[%csl Ra6,Gc1][%cal
Gc1c7] Maintient le N а la bande} f4 $146 {Semble un peu trop lent} (23... Rf7
$142 24. Rc2 Rc7 25. Rxc7 ({RR} 25. Rfc1 Rec8 26. Rxc7 Rxc7 27. Re1 f4 28. g3
Rc2 29. gxf4 Nc7 30. f5 Rxb2 31. Re7 Nb5 32. a4 Nc3 33. Rxa7 Ra2 34. Rc7 Nd1
35. Bh4 Ne3 36. f6 Nf5 37. Rc8+ Kf7 38. Rc7+ Kg8 39. Rc8+ Kf7 {L'Ami,E (2586)
-Spoelman,W (2461)/Vlissingen 2006/1/2-1/2 (40)}) 25... Nxc7 26. Bg3 Ne6 {
[%csl Rd4]} 27. Re1 (27. Be5 Rc8 $132) 27... Kf7 28. Re5 {[%csl Rd5,Rf5]} Nxd4
{1/2-1/2 Leitao,R (2475)-Lima,D (2430)/Americana 1996}) (23... Re2 24. b4 Rf7 {
Volek,S (2308)-Bucek,J (2379) CZE-ch21 final email 2009 1/2}) 24. Rfe1 Kf7 25.
Rc6 $1 Rc8 26. Rec1 (26. Rce6 {[%cal Ge6e7]} Rfe8 (26... Rc2 27. Re7+) 27. Rd6
{[%csl Rd5]}) 26... Rxc6 {Malgré un jeu ouvert, le B n'est pas trés bon а
cause de la faiblesse "d4"} 27. Rxc6 Ke7 28. Be1 Kd7 29. Rg6 Rf7 30. Bb4 $1 Nc7
(30... Nxb4 31. axb4 Re7 32. Kf2 $11) 31. Rd6+ $1 Ke8 32. a4 $1 {La position
Noire est très passive} Rd7 33. Rc6 Kf7 34. Bd6 {[%csl Rc7,Rf4]} Ne6 35. Be5
$14 {[%csl Ge5] Le mauvais B a réussi а s'activer} Ke7 36. b4 Rd8 37. a5 Kd7 (
37... bxa5 38. bxa5 Rd7 39. a6 {[%csl Ra7]}) 38. b5 $1 Rc8 39. Rd6+ Ke7 40.
axb6 Rc1+ 41. Kf2 Rc2+ 42. Kf1 Rc1+ 43. Ke2 axb6 44. Rxb6 {[%csl Gb5]} Rc2+ 45.
Kd3 $1 Rxg2 46. Bd6+ Kf7 (46... Kd7 {Semblait mieux résister} 47. Bc5 Ng5 (
47... Rxh2 48. Rd6+ {[%cal Gb5b6]}) (47... Rb2 $2 48. Rd6+ {[%csl Gc5][%cal
Gb5b6]}) 48. Rd6+ Kc8 49. Rxd5 Nxf3) 47. Rb7+ {Gagne un tempo important} Kg6
48. b6 Rb2 49. Be5 {[%csl Rg7]} (49. Bc5) 49... Kh5 50. Kc3 Rb5 51. Rb8 Ng5 52.
Bxf4 Nxf3 53. Be5 g5 54. Bc7 $1 {Libère la R de la protection du P passé et le
problème majeur des Blancs de la R mal placée, sera résolu.} g4 (54... Kg6) 55.
Ra8 Nxh2 56. Bxh2 $6 $138 (56. Ra4 $142 $1 {[%csl Gc7][%cal Ga4b4]} Kh4 57. Rb4
$18) 56... Rxb6 57. Rd8 Kh4 $13 {[%cal Gg4g3]} 58. Be5 Rg6 {On se souvient
tous de l'adage donné par TARRASCH: "Il faut toujours placer la R derrière le
P passé" Il se moquait un peu du fait que cette recommandation était prise
trop souvent au sens dogmatique (même si on reprochait aussi а l'allemand son
caractère dogmatique!) et il avait reçu une fois une lettre d'un amateur se
plaignant du fait qu'il avait perdu en suivant son conseil. Le Dr lui avait
répondu; "Il faut toujours placer la R derrière le P passé... sauf si c'est
une faute!"} (58... Kh3 $5 59. Rh8 (59. Rg8 h5) 59... Kh4 {[%cal Gh6h5]} (59...
g3 $2 60. Rg8) 60. Kd3 h5 (60... g3 61. Rg8 Rb3+ 62. Ke2 (62. Kc2 Rf3 $132 {
[%csl Rc2][%cal Gh4h3,Gh6h5]}) 62... h5 $132)) 59. Rxd5 h5 {[%csl Gg4,Gh5]} 60.
Rd6 Rg8 61. Ra6 g3 62. Ra1 Kg4 (62... g2 $6 63. Rg1 Kh3 {[%csl Ge5] Il est
difficile de progresser pour les Noirs} 64. d5 Rf8 65. d6 Rf1 66. Bd4 $1) 63.
d5 Kf5 64. Bc7 h4 (64... g2 $2 65. Bh2) 65. d6 Ke6 66. Re1+ Kd7 67. Re7+ Kc6 $8
(67... Kc8 $2 68. d7+ Kxc7 69. Re8) 68. d7 h3 $2 {la cadence trop rapide ne
permet pas de jouer "proprement" les finales.} (68... g2 $8 69. Bh2 Rd8 70. Rh7
Rxd7 71. Rxh4 Rg7 72. Bg1 Kd5 73. Kd3 Rf7 {[%cal Gf7f1]} 74. Rg4 Rf3+ 75. Ke2
Rb3 76. Rxg2 Rb2+ {[%cal Gb2g2]}) 69. Re8 Kxd7 70. Rxg8 h2 71. Rg7+ Kc6 72. Rh7
1-0

[Event "Metz op 31th"]
[Site "Metz"]
[Date "2013.04.24"]
[Round "4"]
[White "Hilverda, Alexander"]
[Black "Wirig, Anthony"]
[Result "0-1"]
[ECO "E32"]
[WhiteElo "2329"]
[BlackElo "2481"]
[Annotator "Metz Alekhine/Primel,D"]
[PlyCount "72"]
[EventDate "2013.04.20"]
[EventType "swiss"]
[EventRounds "9"]
[EventCountry "FRA"]
[SourceTitle "EXT 2016"]
[Source "ChessBase"]
[SourceDate "2015.10.08"]
[SourceVersion "1"]
[SourceVersionDate "2015.10.08"]
[SourceQuality "1"]
[TimeControl "40/5400:1800+30"]
[WhiteClock "1:30:00"]
[BlackClock "1:30:00"]

1. d4 Nf6 2. c4 e6 3. Nc3 Bb4 4. Qc2 O-O 5. a3 (5. Nf3 c5 6. dxc5 Na6 7. c6
bxc6 8. a3) 5... Bxc3+ 6. Qxc3 d6 (6... d5 7. Bg5 (7. cxd5 Ne4 8. Qc2 exd5 9.
Bf4 Bf5 10. Qxc7) 7... c5 8. dxc5 d4 9. Qg3 Nc6 10. O-O-O e5 11. Nf3 Ne4 12.
Bxd8 Nxg3 13. hxg3 Rxd8 $11 {Morozevich,A (2750)-Karpov,A (2619) Wch Blitz 5th
2009 (25) 1-0}) 7. Nf3 b6 8. g3 Bb7 9. Bg2 a5 10. b3 Nbd7 11. O-O Be4 (11...
Qe7 {[%cal Ge6e5]}) 12. Bb2 Qb8 {[%cal Gb8b7]} 13. Bh3 $1 {[%cal Gf3d2] Une
manoeuvre classique pour éviter l'échange des B après Nd2} (13. a4 Rd8 14.
Rfe1 h6 15. Bh3 Bh7 16. Nd2 c6 17. Bg2 d5 {1/2-1/2 (17) Maiorov,N (2552)
-Zhigalko,S (2682) Minsk 2014}) 13... b5 14. Nd2 bxc4 15. bxc4 Nb6 $146 (15...
Bg6 16. Bg2 d5 17. Rac1 c6 18. Ba1 Ra7 19. f3 Re8 20. e4 Kh8 21. Rfe1 a4 22.
Qe3 Rb7 23. g4 dxe4 24. g5 Nh5 25. fxe4 Qf4 26. e5 Rc7 27. Bc3 Rb8 28. Re2
Qxe3+ 29. Rxe3 Nf4 30. Bh1 Bf5 31. Rf1 Ng6 32. Ba5 Ra7 33. Bb4 c5 34. dxc5
Ndxe5 35. c6 Rc8 36. c7 Raxc7 37. c5 h6 38. gxh6 gxh6 39. Rf2 Ng4 40. Rxf5 Nxe3
41. Rh5 Kh7 42. Rh3 Nd5 43. Ne4 Ngf4 44. Rf3 f5 45. Nf6+ {Manoeuvre,A (2111)
-Saiboulatov,D (2370) France 2009 0-1}) 16. Nxe4 Nxe4 17. Qc2 Nxc4 $1 18. Qxc4
Qxb2 19. Rfc1 d5 $1 20. Qd3 (20. Qxc7 Qxe2 $17 {[%csl Rd4]}) 20... c5 21. dxc5
Nxc5 $36 22. Qc3 Qxc3 23. Rxc3 Ne4 24. Rc7 Rfc8 25. Rac1 Rxc7 26. Rxc7 g6 27.
Bg2 Nd2 28. Rc2 Nb1 $1 29. a4 Rb8 30. Rc6 Nd2 31. f4 $6 {[%csl Re3]} Nb3 32.
Rc3 Rb4 33. e3 Nd2 34. Rd3 Nc4 $19 35. e4 Nb2 36. Rd2 dxe4 0-1

[Event "Metz op 31th"]
[Site "Metz"]
[Date "2013.04.23"]
[Round "6"]
[White "Hilverda, Alexander"]
[Black "Nguyen, Chi Minh"]
[Result "0-1"]
[ECO "E32"]
[WhiteElo "2329"]
[BlackElo "2372"]
[Annotator "Metz Alekhine/Primel,D"]
[PlyCount "38"]
[EventDate "2013.04.20"]
[EventType "swiss"]
[EventRounds "9"]
[EventCountry "FRA"]
[SourceTitle "EXT 2016"]
[Source "ChessBase"]
[SourceDate "2015.10.08"]
[SourceVersion "1"]
[SourceVersionDate "2015.10.08"]
[SourceQuality "1"]
[TimeControl "40/5400:1800+30"]
[WhiteClock "1:30:00"]
[BlackClock "1:30:00"]

1. d4 Nf6 2. c4 e6 3. Nc3 Bb4 4. Qc2 O-O 5. a3 Bxc3+ 6. Qxc3 b5 $5 {Les Noirs
ont des bons résultats avec ce gambit.} (6... c5 7. Nf3) 7. cxb5 c6 8. Bg5 {
L'acceptation du gambit est risquée} (8. bxc6 Nxc6 9. Bg5 Bb7 $44) 8... cxb5
9. e3 Bb7 10. Nf3 {93} h6 {88 Les deux adversaires sont bien préparés et ils
jouent vite l'ouverture} (10... a6) 11. Bh4 (11. Bxf6 Qxf6 12. Be2 Rc8 13. Qd3
a6 14. O-O Nc6 15. Nd2 Na5 16. Rfc1 Bd5 $11) 11... g5 (11... Nc6 12. Bxb5) (
11... a6 12. Bd3 Nc6 13. Qd2 (13. O-O d6 14. Rac1 Rc8 $11)) 12. Bg3 Ne4 13. Qc2
(13. Qd3 f5 14. Nd2 a6 15. Nxe4 (15. Rc1 Nxg3) 15... Bxe4 16. Qd2 Nc6 17. Bd6
Na5 {Turov,M (2630)-Naiditsch,A (2708) EU-ch blitz Warsaw 2012 (4) 0-1} (17...
Rf7 18. f3 Bd5 19. Rc1 Na5 $11 {[%cal Ga5c4,Ga5b3]})) 13... Na6 {[%csl Rc2,Re1]
[%cal Ga8c8]} 14. b4 (14. Nd2 Rc8 $44) 14... Rc8 15. Qb2 {74} h5 $5 $146 {
[%csl Rg3] Paradoxalement, le K Noir est moins exposé par cette avance que le
K Blanc} (15... Nc7 16. Bd3 {Drozdovskij,Y (2603)-Naiditsch,A (2700) World Cup
ACP 3rd rapid 2009 (1.1) 1/2-1/2}) 16. Nd2 (16. h4 $5 {Probablement un moindre
mal pour les Blancs} Nxg3 17. fxg3) 16... h4 $36 17. Nxe4 Bxe4 18. Bd6 Rc2 $40
19. Qb3 Qf6 {[%csl Ra1,Rf2] Suite illisible et gain Noir au 26ème coup} 0-1

[Event "Sautron op 15th"]
[Site "Sautron"]
[Date "2015.10.27"]
[Round "5.1"]
[White "Zubarev, Alexander2"]
[Black "Le Roux, Jean Pierre"]
[Result "1/2-1/2"]
[ECO "E32"]
[WhiteElo "2542"]
[BlackElo "2572"]
[Annotator "Primel,D"]
[PlyCount "112"]
[EventDate "2015.10.24"]
[EventType "swiss"]
[EventRounds "9"]
[EventCountry "FRA"]
[SourceTitle "CBM 169 Extra"]
[Source "ChessBase"]
[SourceDate "2015.12.18"]
[SourceVersion "1"]
[SourceVersionDate "2015.12.18"]
[SourceQuality "1"]
[TimeControl "40/5400+30:1800+30"]
[WhiteClock "0:06:31"]
[BlackClock "0:03:45"]

1. d4 {[%emt 0:00:00]} Nf6 {[%emt 0:00:00]} 2. c4 {[%emt 0:00:02]} e6 {[%emt 0:
00:00]} (2... g6 {Le second répertoire du breton}) 3. Nc3 {[%emt 0:00:06]} Bb4
{[%emt 0:00:03]} 4. Qc2 {[%emt 0:00:21]} d6 $5 {[%emt 0:00:17] Une ligne
secondaire} (4... O-O 5. a3 (5. e4 d5 6. e5 Ne4 7. Bd3 c5 8. Nf3 cxd4 9. Nxd4
Nd7 (9... Nc5 10. Bxh7+ Kh8 11. Nf3 d4 12. Bg5 f6 $13)) 5... Bxc3+ 6. Qxc3 b6
7. Bg5 Bb7 (7... Ba6) (7... c5) (7... h6) 8. f3 {[%cal Ge2e4]} h6 9. Bh4 d5 (
9... d6 10. e3) 10. e3 Nbd7 11. cxd5 Nxd5 12. Bxd8 Nxc3 13. Bh4 Nd5 14. Bf2 c5
(14... f5 15. Bb5 c6 16. Bd3 (16. Ba4 e5 17. Ne2 Rae8 18. Kd2 $13 {Miron,L 
(2544)-Jianu,V (2560) Condom op 12th 2013 (5) 1/2}) 16... e5 17. Ne2 Rae8 (
17... e4 18. fxe4 fxe4 19. Bxe4 Nxe3 20. Bxe3 Rae8 $36 {[%csl Re1]})) 15. e4 (
15. Bb5) 15... Ne7 16. Ne2 Rac8 17. Nc3 cxd4 18. Bxd4 Nc5 19. Rd1 Rfd8 $32) (
4... d5) 5. Nf3 {[%emt 0:00:51]} (5. a3) (5. Bg5) 5... Nbd7 {[%emt 0:00:07]} (
5... Nc6 {Plus courant} 6. Bd2 O-O 7. a3 Bxc3 8. Bxc3 Qe7 {[%cal Ge6e5]} (8...
a5 {[%cal Ga5a4]})) 6. Bd2 {[%emt 0:02:47][%cal Ga2a3] Un coup un peu trop
lent qui ne pose pas trop de problèmes aux Noirs pour égaliser} (6. g3 $142
b6 7. Bg2 Bb7 8. O-O O-O 9. Rd1 $14 {Topalov,V (2793)-Grischuk,A (2779)
Thessaloniki FIDE GP 2013 (1) 1/2}) 6... b6 {[%emt 0:08:21] La ligne
secondaire Bd2 a surpris un peu les Noirs qui commencent а réfléchir} 7. e3 {
[%emt 0:33:31] Curieusement, l'ukrainien va dépenser plus d'une 1/2 h sur
cette position théorique et c'est le signe d'une préparation non réussie} (
7. e4 $142 Bb7 8. Bd3 e5 9. d5 a5 10. b3 O-O 11. a3 Bxc3 12. Bxc3 Nc5 13. O-O
Nh5 14. b4 Nxd3 15. Qxd3 Nf4 16. Qc2 Bc8 17. Bd2 Qf6 18. Bxf4 Qxf4 19. Nd2 f5
20. b5 fxe4 21. Nxe4 Bf5 22. Rae1 Rf7 23. Re3 Raf8 24. Qe2 Qh6 25. f3 Bg6 26.
g3 Bf5 27. h4 Bxe4 28. Rxe4 Rf5 29. Kg2 Qg6 30. Qe3 Rf4 31. Rf2 R8f5 32. Kh2
Rxe4 {1/2-1/2 (32) Fridman,D (2648)-Fedorchuk,S (2660) Beer Sheva 2013}) 7...
Bb7 {[%emt 0:01:22]} 8. a3 {[%emt 0:06:36]} Bxc3 {[%emt 0:01:10]} 9. Bxc3 {
[%emt 0:00:04]} Ne4 {[%emt 0:09:43]} 10. Bd3 {[%emt 0:10:29]} Nxc3 {[%emt 0:02:
17]} (10... f5 $5 {Thématique dans ce genre de structure} 11. d5 Ndc5 $132)
11. bxc3 $146 {[%emt 0:00:09] Bizarre après avoir joué Qc2} (11. Qxc3 Nf6 12.
O-O Bxf3 13. gxf3 O-O 14. Rfe1 Nh5 15. Bf1 Qg5+ 16. Bg2 f5 17. f4 Qg6 18. Kf1
Rae8 19. Rad1 Nf6 20. b4 Qh5 21. h3 Ne4 22. Bxe4 fxe4 23. Kg2 Qf3+ 24. Kf1 Rf6
25. Re2 Qh1# {0-1 (25) Nowak,T-Lankof,P Leba 2009}) 11... Qe7 $1 $11 {[%emt 0:
15:10][%cal Ge6e5,Ge5e4]} (11... Nf6 12. O-O O-O 13. a4 a5 14. Rab1 {[%cal
Gc4c5]} Qe7 $132) 12. Be4 $5 {[%emt 0:09:59]} Bxe4 {[%emt 0:03:44]} 13. Qxe4 {
[%emt 0:00:05]} O-O {[%emt 0:00:23]} 14. Qc6 $1 {[%emt 0:00:13]} Nf6 {[%emt 0:
00:48]} 15. a4 {[%emt 0:00:17]} Qd7 {[%emt 0:22:12]} (15... a5) 16. Qxd7 {
[%emt 0:00:33]} Nxd7 {[%emt 0:00:03][%cal Ga7a5]} 17. a5 $1 {[%emt 0:02:46]} (
17. O-O $143 a5 $15 {[%csl Ra4]}) 17... Rfb8 {[%emt 0:00:39]} 18. axb6 {
[%emt 0:01:40]} Rxb6 $5 {[%emt 0:04:01][%csl Ga7][%cal Ga7a5]} (18... axb6 {
Plus naturel mais les R Noires sont assez mal placées} 19. Ke2 $14 {[%csl Rb8]
}) 19. Ke2 {[%emt 0:01:11]} Kf8 {[%emt 0:04:14]} 20. Ra2 {[%emt 0:04:32]} a5 {
[%emt 0:03:06]} 21. Rha1 {[%emt 0:01:33]} Rba6 {[%emt 0:00:12]} 22. Rb1 $14 {
[%emt 0:00:42]} R8a7 {[%emt 0:01:36]} (22... Ke7 23. Rb7 R6a7) 23. Kd3 {
[%emt 0:02:25]} Ke7 {[%emt 0:00:29]} 24. g4 $1 {[%emt 0:00:54]} h6 {[%emt 0:02:
22]} 25. h4 {[%emt 0:00:40]} a4 {[%emt 0:06:00]} 26. Nd2 {[%emt 0:00:45]} Ra5 {
[%emt 0:04:08] (=)} 27. f4 {[%emt 0:04:42] Les Blancs ont plus d'espace et ils
préfèrent continuer mais les chances de gains sont assez minimes.} g5 $1 {
[%emt 0:06:40]} 28. Nf3 {[%emt 0:00:48]} (28. hxg5 hxg5) 28... gxh4 {[%emt 0:
01:32]} 29. Rh1 {[%emt 0:01:09]} Kf8 {[%emt 0:02:52]} 30. Rxh4 {[%emt 0:00:14]}
Kg7 {[%emt 0:00:03] Il restait moins de 2 mns aux Noirs pour passer le
contrôle de temps} 31. g5 $6 {[%emt 0:06:01] L'inconvénient est de permettre
aux Noirs de se débarasser de la faiblesse "h6"} (31. Rah2 a3 32. Rxh6 a2 33.
Rh7+ Kf6 {[%cal Gf6e7]}) 31... hxg5 {[%emt 0:00:05]} 32. Nxg5 {[%emt 0:00:07]}
Nf8 {[%emt 0:01:46][%csl Gh7]} 33. Rh1 {[%emt 0:03:34]} Kf6 {[%emt 0:00:33]}
34. c5 $1 {[%emt 0:01:28]} dxc5 {[%emt 0:00:30]} 35. Ne4+ {[%emt 0:00:15]} Ke7
{[%emt 0:00:02]} 36. Nxc5 {[%emt 0:00:23]} Nd7 {[%emt 0:00:32]} 37. Nxd7 {
[%emt 0:04:28]} Kxd7 {[%emt 0:00:02]} 38. Rh7 {[%emt 0:00:07]} Ke7 {[%emt 0:00:
46]} 39. Kc4 $1 {[%emt 0:00:13][%cal Gc4b4]} R5a6 $1 {[%emt 0:00:51] Empêche
Kb4} 40. Rh5 {[%emt 0:00:00]} f5 {[%emt 0:00:00][%csl Re3]} 41. Rh1 {[%emt 0:
02:15]} Kd6 {[%emt 0:04:09]} 42. Ra3 {[%emt 0:03:20]} Ra5 {[%emt 0:04:44]} 43.
Rb1 {[%emt 0:03:15]} R7a6 {[%emt 0:01:30]} 44. Kd3 {[%emt 0:04:38]} c5 $1 {
[%emt 0:07:13]} 45. c4 {[%emt 0:00:49]} Kc6 {[%emt 0:01:36]} (45... cxd4 $143
46. exd4 {[%csl Gc4]}) 46. Kc3 {[%emt 0:03:52]} Ra8 {[%emt 0:04:31]} 47. Rh1 {
[%emt 0:01:28]} R5a7 {[%emt 0:01:03]} 48. Rh6 $1 {[%emt 0:01:06][%csl Re6]
[%cal Gh6c6]} Re7 {[%emt 0:00:22]} 49. d5+ {[%emt 0:02:02]} Kd7 {[%emt 0:01:04]
} 50. Kd3 {[%emt 0:01:57]} exd5 {[%emt 0:02:26]} 51. cxd5 {[%emt 0:00:29]} Rae8
$1 {[%emt 0:03:24]} 52. Kc4 {[%emt 0:05:22]} Rxe3 {[%emt 0:00:27]} 53. Rxe3 {
[%emt 0:00:22]} (53. Rxa4 R8e4+ 54. Kb5 Rb3+) 53... Rxe3 {[%emt 0:00:02]} 54.
Kxc5 {[%emt 0:00:14]} Re4 {[%emt 0:01:36]} 55. Rh7+ {[%emt 0:00:52]} Kc8 {
[%emt 0:01:18]} 56. Rh8+ {[%emt 0:02:48]} Kd7 {[%emt 0:00:09]} 1/2-1/2